Cogmind - Beta 13 @@@ ROGUE MODE // 2024.04.28 @ 01:31:34 Player: Millea Result: Destroyed by Fortress with Enhanced Nova Cannon Performance ------------- Evolutions (8) 4000 Regions Visited (30) 6000 Robots Destroyed (185) 925 Value Destroyed (7677) 7677 Prototype IDs (90) 1800 Alien Tech Used (9) 1800 Bonus (14120) 14120 TOTAL SCORE: 36322 Bonus ------- Triggered Max Security 1000 High Alert Combat Kills 531 Follower Combat Kills 2357 Entered DSFs 500 Network Hubs Disabled 800 Aligned with FarCom 300 Met Data Miner 300 Met Zhirov 300 Built Enhanced Grunts 300 Met R17 at Cetus 500 Found Hidden Lab 3000 Used Core Reset Matrix 3000 Met R17 at Research 2000 Pursued by Intercept 500 Friendly Fire -1268 Cogmind --------- Core Integrity 0/1450 Matter 169/300 Energy 66/100 System Corruption 27% Temperature Cool (9) Movement Core (50) Location -2/Quarantine Parts ------- > --- POWER (2) -------- (None) > --- PROPULSION (10) -- Combat Linear Gravjet > --- UTILITY (9) ------ Advanced Melee Analysis Suite Graphene Brace Experimental System Shield Quantum Router > --- WEAPON (2) ------- (None) > --- INVENTORY (5) ---- Advanced Heat Sink Phase Redirector Core Cannon Ionic Axe Peak State ------------ > --- POWER ------------ Graviton Reactor Light Quantum Reactor > --- PROPULSION ------- Field Propulsion Drive Cooled Nuclear Pulse Thruster Cooled Nuclear Pulse Thruster Nuclear Pulse Array Cooled Field Propulsion Drive Impulse Thruster Array Impulse Thruster Array > --- UTILITY ---------- Experimental Power Amplifier Experimental Heat Sink High-capacity Storage Unit Advanced Weight Redist. System Advanced Transmission Jammer Advanced EM Disruption Field Experimental Hacking Suite Experimental System Shield Quantum Router > --- WEAPON ----------- Lance Kinetic Spear > --- INVENTORY -------- Light Quantum Reactor Light Quantum Reactor Cooled Cesium-ion Thruster Experimental Energy Well Experimental Matter Compressor Advanced Cloaking Device Improved Propulsion Shielding Medium Regenerative Plating Experimental Shield Generator Transdimensional Reconstructor Core Regenerator Guided Plasma Cannon Potential Cannon Warp Cannon Railgun Helical Railgun Ionic Axe Force Lance [Rating: 180] Favorites ----------- Power Quantum Reactor Engine Improved Deuterium Engine Power Core Light Nuclear Core Reactor Quantum Reactor Propulsion Centrium Heavy Treads Treads Centrium Heavy Treads Leg Enhanced Flexi-carbon Leg Wheel Centrium Wheel Hover Unit Makeshift Hover Unit Flight Unit Improved Cesium-ion Thruster Utility Improved Hacking Suite Device Improved Cooling System Storage Large Storage Unit Processor Advanced Melee Analysis Suite Hackware Improved Hacking Suite Protection Medium Regenerative Plating Weapon Advanced KE Penetrator Energy Gun Advanced Variable Charge Gun Energy Cannon Guided Plasma Cannon Ballistic Gun Advanced KE Penetrator Ballistic Cannon Light Cannon Launcher Advanced Concussive RPG Slashing Weapon Scythe Piercing Weapon Force Lance Special Melee Weapon Datajack Build | -11 -10 -10 -10 -9 -8 -8 -7 -7 -7 -7 -6 -6 -6 -6 -6 -6 -5 -5 -5 -5 -4 -4 -4 -4 -4 -3 -3 -3 -2 -2 ------- Run | Yrd Mat Min Exi Min Mat Sto Fac Low Low Dat Pro Fac Ext Cet Arc Hub Fac Upp Upp Zhi Pro Fac Was Fac DSF Res Arm Lab Res Qua Slots Evolved 16 | . . . . . 4 . 2 . . . . 2 . . . . 2 . . . . 2 . . . 2 . . 2 . Power 1 | . . . . . . . . . . . . 1 . . . . . . . . . . . . . . . . . . Propulsion 8 | . . . . . 1 . 2 . . . . 1 . . . . . . . . . 2 . . . . . . 2 . Utility 7 | . . . . . 3 . . . . . . . . . . . 2 . . . . . . . . 2 . . . . Weapon . | . . . . . . . . . . . . . . . . . . . . . . . . . . . . . . . Parts Attached 381 | 7 8 . 2 7 15 26 13 . 1 . 1 16 8 13 15 26 13 20 1 11 5 32 12 1 . 20 17 17 64 10 Power 35 | 1 2 . . 1 1 3 1 . . . . 1 . 2 2 3 1 2 . 2 . 2 1 . . 2 . 2 6 . Engine 7 | 1 1 . . 1 1 . . . . . . . . 1 . . . 1 . 1 . . . . . . . . . . Core 6 | . 1 . . . . 3 1 . . . . 1 . . . . . . . . . . . . . . . . . . Reactor 22 | . . . . . . . . . . . . . . 1 2 3 1 1 . 1 . 2 1 . . 2 . 2 6 . Propulsion 82 | 2 1 . . . 3 7 6 . 1 . . 4 . 2 2 11 5 5 . 3 . 7 1 . . 5 3 . 12 2 Treads 25 | 2 1 . . . 2 6 . . . . . . . 2 1 7 4 . . . . . . . . . . . . . Leg 8 | . . . . . . . . . . . . . . . . 4 1 1 . . . 2 . . . . . . . . Wheel 4 | . . . . . 1 . . . . . . . . . . . . . . . . 1 . . . . . . 2 . Hover 15 | . . . . . . . . . . . . . . . . . . 4 . . . 1 1 . . 1 . . 7 1 Flight 30 | . . . . . . 1 6 . 1 . . 4 . . 1 . . . . 3 . 3 . . . 4 3 . 3 1 Utility 173 | 2 2 . . 2 9 10 5 . . . . 6 5 7 9 6 6 7 . 6 . 14 8 1 . 10 9 8 34 7 Device 80 | 1 . . . 1 3 2 4 . . . . 3 1 2 4 . . 2 . 2 . 8 3 . . 6 6 2 25 5 Storage 13 | 1 1 . . . . . . . . . . . . . . . . 1 . . . 3 1 . . 2 . 1 3 . Processor 3 | . . . . . . . . . . . . . . . . . . . . . . . . . . 1 . . 2 . Hackware 20 | . . . . . 1 1 1 . . . . 2 . . 3 2 2 . . 2 . 1 . . . 1 1 3 . . Protection 57 | . 1 . . 1 5 7 . . . . . 1 4 5 2 4 4 4 . 2 . 2 4 1 . . 2 2 4 2 Artifact . | . . . . . . . . . . . . . . . . . . . . . . . . . . . . . . . Weapon 91 | 2 3 . 2 4 2 6 1 . . . 1 5 3 2 2 6 1 6 1 . 5 9 2 . . 3 5 7 12 1 Energy Gun 15 | . 1 . . 3 . . . . . . . . . . 1 1 . 2 . . 3 1 . . . . . 1 2 . Energy Cannon 14 | . . . . . . . . . . . . . 1 . . . . 1 . . . 6 . . . 1 . 2 3 . Ballistic Gun 25 | 2 . . . . 2 4 . . . . . . . 2 1 4 1 1 1 . 2 1 . . . 1 1 . 2 . Ballistic Cannon 5 | . 2 . 2 . . 1 . . . . . . . . . . . . . . . . . . . . . . . . Launcher 8 | . . . . 1 . . . . . . . . 2 . . 1 . 2 . . . . 2 . . . . . . . Special Weapon . | . . . . . . . . . . . . . . . . . . . . . . . . . . . . . . . Impact Weapon . | . . . . . . . . . . . . . . . . . . . . . . . . . . . . . . . Slashing Weapon 12 | . . . . . . . 1 . . . 1 5 . . . . . . . . . . . . . . 1 2 1 1 Piercing Weapon 11 | . . . . . . . . . . . . . . . . . . . . . . 1 . . . 1 3 2 4 . Special Melee Weapon 1 | . . . . . . 1 . . . . . . . . . . . . . . . . . . . . . . . . Unidentified Prototypes 39 | . . . . 2 . 2 . . . . . . 1 2 2 1 . 1 . 5 . . 1 . . 2 8 11 1 . Corrupted Parts 7 | . . . . 2 1 . . . . . . . . 4 . . . . . . . . . . . . . . . . System Corruption 26 | . . . . 7 4 . . . . . . . . 15 . . . . . . . . . . . . . . . . Parts Lost 75 | . . . . . 3 10 1 1 . . . . 2 3 . 5 4 . . . 1 9 . . . 3 . 2 20 11 Power 12 | . . . . . 1 1 . . . . . . . 1 . . 1 . . . . 1 . . . 1 . 1 5 . Propulsion 27 | . . . . . 1 4 1 1 . . . . . . . 2 1 . . . 1 2 . . . . . . 7 7 Utility 29 | . . . . . 1 3 . . . . . . 2 2 . 1 2 . . . . 5 . . . 2 . 1 7 3 Weapon 7 | . . . . . . 2 . . . . . . . . . 2 . . . . . 1 . . . . . . 1 1 Highest Loss Streak 16 | . . . . . 1 9 1 1 . . . . 1 2 . 2 3 . . . 1 5 . . . 1 . 2 16 11 To Critical Strikes . | . . . . . . . . . . . . . . . . . . . . . . . . . . . . . . . Average Slot Usage (%) 89 | . 100 100 74 100 94 97 99 92 92 92 88 87 92 87 85 86 92 98 100 99 91 79 86 88 89 81 77 79 71 72 Engine 2 | . 3 14 14 14 8 1 . . . . . . . 5 . . . 4 5 5 5 2 4 5 5 . . . . . Core 1 | . 10 . . . . 7 7 7 7 7 7 13 13 . . . . . . . . . . . . . . . . . Reactor 6 | . . . . . . . . . . . . . . 5 12 12 10 5 5 5 5 4 5 5 5 5 4 4 5 2 Treads 12 | . 28 28 28 28 21 25 . . . . . . . 11 19 24 9 . . . . . . . . . . . . . Leg 3 | . . . . . . . . . . . . . . . . 1 21 17 17 17 16 7 . . . . . . . . Hover 2 | . . . . . . . . . . . . . . . . . . 15 17 8 . . 4 5 5 . . . 6 24 Flight 9 | . . . . . . . 38 38 38 38 38 40 40 17 6 . . . . 7 17 20 26 26 26 28 27 23 15 3 Device 8 | . 6 . . . 11 4 12 7 7 7 7 2 6 12 6 . . 10 11 11 11 10 13 15 15 17 19 18 13 14 Storage 7 | . 14 14 14 14 9 9 7 7 7 7 7 6 6 6 6 6 5 11 5 5 5 4 1 . . 5 9 4 4 3 Hackware 12 | . . . . . 9 12 17 23 23 23 23 21 6 . 12 16 15 17 17 17 17 16 11 10 10 10 10 18 13 8 Protection 6 | . 7 14 14 14 14 18 . . . . . 1 11 13 6 8 15 . 5 5 5 1 8 9 10 3 2 . 2 3 Energy Gun 1 | . . . . 6 12 . . . . . . . . . . . 5 5 5 5 1 2 . . . . . . 1 2 Ballistic Gun 7 | . 5 . . . 5 13 7 . . . . . . 10 12 12 4 4 4 5 1 2 . . . . . . . . Ballistic Cannon 1 | . 21 28 2 22 . 4 4 . . . . . . . . . . . . . . . . . . . . . . . Naked Turns . | . . . . . . . . . . . . . . . . . . . . . . . . . . . . . . . Heaviest Build 95 | 15 32 32 32 37 49 41 36 31 28 28 28 35 53 81 82 93 93 84 84 91 81 81 38 37 37 65 68 92 95 77 Greatest Support 213 | 40 40 40 40 40 60 60 37 37 37 37 37 45 44 160 183 213 94 84 84 84 84 68 38 38 38 66 68 68 86 86 Greatest Overweight (x) 27 | 1 . . . . 2 . . . . . . . 1 2 27 1 1 26 . 1 1 1 . . . . . 1 5 2 Average Overweight (x) 1 | . . . . . . . . . . . . . . . 17 . . 7 . . . . . . . . . . . . Largest Inventory Capacity 20 | 8 15 15 15 15 15 15 15 15 15 15 15 15 15 15 15 15 15 15 15 15 15 15 5 5 5 20 20 20 20 20 Average Capacity 14 | 7 12 15 15 15 15 15 15 15 15 15 15 15 15 15 15 15 15 15 15 15 15 10 5 5 5 12 20 20 20 17 Most Carried 20 | 8 15 15 15 15 15 15 15 15 15 15 15 15 15 15 15 15 15 15 15 15 15 15 5 5 5 20 20 20 20 20 Average Carried 14 | 5 9 15 15 14 12 14 14 15 14 15 14 14 14 14 14 14 14 14 15 14 14 9 4 5 5 10 19 19 15 15 Final Capacity 20 | 8 15 15 15 15 15 15 15 15 15 15 15 15 15 15 15 15 15 15 15 15 15 5 5 5 5 20 20 20 20 5 Final Carried 20 | 8 15 15 15 15 15 15 15 15 15 15 15 14 14 15 15 13 15 15 15 15 15 5 5 5 5 20 19 20 16 5 Class Distribution -------------------- 58% | Scavenger-Mutant 12% | Hacker-Sprinter 8% | Mutant 7% | Hacker-Mutant 7% | Commander-Mutant Dominant Class ---------------- Mutant | -10/Materials Mutant | -10/Mines Mutant | -10/Exiles Mutant | -9/Mines Scavenger-Mutant | -8/Materials Commander-Mutant | -8/Storage Hacker-Sprinter | -7/Factory Hacker-Sprinter | -7/Lower Caves Hacker-Sprinter | -7/Lower Caves Hacker-Sprinter | -7/Data Miner Hacker-Sprinter | -6/Proximity Caves Hacker-Sprinter | -6/Factory Sprinter | -6/Extension Scavenger-Mutant | -6/Cetus Scavenger-Mutant | -6/Archives Scavenger-Mutant | -6/Hub_04(d) Scavenger-Mutant | -5/Factory Scavenger-Mutant | -5/Upper Caves Scavenger-Mutant | -5/Upper Caves Hacker-Mutant | -5/Zhirov Hacker-Mutant | -4/Proximity Caves Hacker-Mutant | -4/Factory Hacker-Sprinter | -4/Waste Hacker-Sprinter | -4/Factory Hacker-Sprinter | -4/DSF Hacker-Sprinter | -3/Research Hacker-Sprinter | -3/Armory Wizard-Sprinter | -3/Lab Hacker-Mutant | -2/Research Hacker-Mutant | -2/Quarantine Resources | -11 -10 -10 -10 -9 -8 -8 -7 -7 -7 -7 -6 -6 -6 -6 -6 -6 -5 -5 -5 -5 -4 -4 -4 -4 -4 -3 -3 -3 -2 -2 ----------- Run | Yrd Mat Min Exi Min Mat Sto Fac Low Low Dat Pro Fac Ext Cet Arc Hub Fac Upp Upp Zhi Pro Fac Was Fac DSF Res Arm Lab Res Qua Matter Collected 7005 | 354 409 33 . 161 268 951 312 . 10 . . 50 310 235 494 974 72 339 95 . 35 390 703 110 . 210 . 80 410 . Remotely . | . . . . . . . . . . . . . . . . . . . . . . . . . . . . . . . Salvage Created 7556 | 130 708 33 . 139 352 1508 386 . . . . . 226 513 448 724 143 117 106 . . 426 . 195 . 505 39 80 778 . Parts 387 | 14 43 8 . 10 20 76 27 . . . . . 11 15 27 43 15 9 2 . . 12 . 6 . 19 2 8 20 . Haulers Intercepted 18 | . 2 . . . 1 6 5 . . . . . . . . . . . . . . . . 2 . 1 . . 1 . Recyclers Shooed 8 | 1 . . . . . 6 . . . . . . . . . . 1 . . . . . . . . . . . . . Parts Field Recycled . | . . . . . . . . . . . . . . . . . . . . . . . . . . . . . . . Retrieved Matter . | . . . . . . . . . . . . . . . . . . . . . . . . . . . . . . . Parts Self-Destructed 20 | . . . . . . . . 4 . . 5 . . . . . . 8 3 . . . . . . . . . . . Prevented 1 | . . . . . . . . 1 . . . . . . . . . . . . . . . . . . . . . . Kills | -11 -10 -10 -10 -9 -8 -8 -7 -7 -7 -7 -6 -6 -6 -6 -6 -6 -5 -5 -5 -5 -4 -4 -4 -4 -4 -3 -3 -3 -2 -2 ------- Run | Yrd Mat Min Exi Min Mat Sto Fac Low Low Dat Pro Fac Ext Cet Arc Hub Fac Upp Upp Zhi Pro Fac Was Fac DSF Res Arm Lab Res Qua Combat Hostiles Destroyed 117 | . 15 3 . 4 5 17 3 . . . . . 4 7 2 15 4 6 5 . . 7 . . . 6 1 1 12 . Melee 16 | . . . . . 1 . . . . . . . 2 . . 1 . . . . . . . . . 5 1 1 5 . Guns 46 | . 4 . . . 4 14 . . . . . . . 4 2 10 4 . . . . 3 . . . . . . 1 . Cannons 34 | . 11 3 . 4 . 3 3 . . . . . . 2 . . . 2 . . . 4 . . . . . . 2 . AOE 16 | . . . . . . . . . . . . . 2 . . 4 . 4 5 . . . . . . 1 . . . . Classes Destroyed 16 | 2 5 . . . 2 2 . . . . . . . . . 4 . 1 . . . . . . . . . . . . Worker 10 | . . . . . 1 5 3 . . . . . . . . 1 . . . . . . . . . . . . . . Builder 4 | . . . . . . 1 1 . . . . . . . . 1 1 . . . . . . . . . . . . . Tunneler 4 | 4 . . . . . . . . . . . . . . . . . . . . . . . . . . . . . . Hauler 18 | . 2 . . . 1 6 5 . . . . . . . . . . . . . . . . 2 . 1 . . 1 . Recycler 9 | 1 2 . . . . 4 . . . . . . 1 . . . . . . . . . . . . 1 . . . . Mechanic 1 | . . . . . . . . . . . . . . . . 1 . . . . . . . . . . . . . . Operator 13 | . 3 . . . 1 . . . . . . . . . 9 . . . . . . . . . . . . . . . Watcher 8 | . 1 . . . . 1 2 . . . . . . 1 . 2 1 . . . . . . . . . . . . . Swarmer 26 | . 2 3 . 4 . . 2 . . . . . . . . . 4 4 . . . 1 . . . 5 1 . . . Saboteur 1 | . . . . . . . . . . . . . . . . 1 . . . . . . . . . . . . . . Grunt 47 | . 13 . . . 3 9 1 . . . . . 3 . . 10 . . 5 . . 2 . . . . . . 1 . Duelist 2 | . . . . . . . . . . . . . . . . 1 . . . . . 1 . . . . . . . . Sentry 15 | . . . . . 2 7 . . . . . . . . 2 2 . . . . . 1 . . . 1 . . . . Hunter 4 | . . . . . . 1 . . . . . . 1 . . . . . . . . . . . . . . . 2 . Programmer 9 | . . . . . . . . . . . . . . . . . . 2 . . . 2 . . . . . . 5 . Heavy 1 | . . . . . . . . . . . . . . . . 1 . . . . . . . . . . . . . . Cetus Guard 7 | . . . . . . . . . . . . . . 7 . . . . . . . . . . . . . . . . Tracker 2 | . . . . . . . . . . . . . . . . . . . . . . . . . . . . . 2 . Combat Programmer 2 | . . . . . . . . . . . . . . . . . . . . . . . . . . . . . 2 . Best Kill Streak 7 | 5 3 3 . 4 2 4 3 . . . . . 2 5 6 5 4 4 5 . . 3 . 2 . 3 1 1 7 . Combat Bots Only 5 | . 3 3 . 4 2 3 2 . . . . . 2 4 1 4 4 4 5 . . 3 . . . 3 1 1 4 . Max Kills in Single Turn 2 | 1 1 2 . 2 1 2 1 . . . . . 2 1 1 2 2 1 2 . . 1 . 1 . 1 1 1 1 . Gunslinging 1 | . . . . . . . . . . . . . . . . . 1 . . . . . . . . . . . . . Exploded 2 | . . . . . . . . . . . . . 2 . . 2 . 1 2 . . . . . . 1 . . . . Melee 1 | . . . . . 1 . . . . . . . 1 . . 1 . . . . . . . . . 1 1 1 1 . Uniques/NPCs Destroyed 2 | . . . . 1 . . . . . . . . . . . . . . . . . . . . . . . 1 . . YI-UF0 (-9/Mines) A5 (-3/Lab) Combat | -11 -10 -10 -10 -9 -8 -8 -7 -7 -7 -7 -6 -6 -6 -6 -6 -6 -5 -5 -5 -5 -4 -4 -4 -4 -4 -3 -3 -3 -2 -2 -------- Run | Yrd Mat Min Exi Min Mat Sto Fac Low Low Dat Pro Fac Ext Cet Arc Hub Fac Upp Upp Zhi Pro Fac Was Fac DSF Res Arm Lab Res Qua Hostile Shots Fired 1222 | . 52 2 . 18 42 123 14 4 1 . 5 . 24 36 12 208 95 8 6 . 6 157 . . 3 33 3 34 213 123 Missed 360 | . 12 . . 6 14 39 5 3 1 . 2 . 9 5 1 67 26 1 4 . 3 54 . . 2 9 1 4 45 47 Damage Taken 16358 | . 463 15 . 85 474 1402 204 18 . . 58 78 352 907 303 2135 1223 128 39 . 71 1775 . . 245 506 44 285 3304 2244 Core 2864 | . 66 . . 34 27 180 14 . . . . . 13 36 . 51 146 14 . . . 316 . . 38 119 . 51 748 1011 Absorbed by Shields 533 | . . . . . . . . . . . . . 49 41 . . . . . . . . . . 42 . . 99 302 . Reduced by Siege Mode 164 | . . . . . . . . . . . . . . 40 25 99 . . . . . . . . . . . . . . Redirected to Shielding 698 | . 15 3 . 4 23 53 . . . . . . 36 172 . 41 . . . . . 158 . . 21 72 . 38 62 . Ignored by Resistances 1091 | . . . . . . 2 . . . . . . . . . . . . . . . 450 . . . . . 397 242 . Regen/Repaired (Parts) 1117 | . . . . . . 184 . . . . . . 17 91 216 31 200 . . . . . 97 43 . . 93 . 134 11 Core Remaining (%) 79 | 100 . . . 60 . 62 . . . . 98 . . . . 88 . . . . 84 . . . 69 . . 78 . . Volleys Fired 520 | 14 51 2 . 13 28 90 19 . . . . . 5 27 42 82 8 18 6 . 6 53 . . . 8 . . 48 . Largest 2 | 2 2 2 . 2 2 2 2 . . . . . 1 2 2 2 2 2 1 . 1 2 . . . 1 . . 1 . Hottest 240 | 40 70 70 . 90 90 69 69 . . . . . 70 120 70 115 115 155 70 . 80 240 . . . 120 . . 200 . Shots Fired 852 | 28 102 4 . 26 56 172 36 . . . . . 5 37 82 145 16 19 6 . 6 58 . . . 8 . . 46 . Gun 632 | 28 36 . . 10 56 153 17 . . . . . . 20 82 139 16 8 . . 6 37 . . . . . . 24 . Cannon 196 | . 66 4 . 16 . 19 19 . . . . . . 17 . . . 5 . . . 21 . . . 7 . . 22 . Launcher 24 | . . . . . . . . . . . . . 5 . . 6 . 6 6 . . . . . . 1 . . . . Special . | . . . . . . . . . . . . . . . . . . . . . . . . . . . . . . . Kinetic 649 | 28 102 4 . 16 18 172 36 . . . . . . 20 82 137 8 . . . . 2 . . . . . . 24 . Thermal 131 | . . . . . . . . . . . . . . 17 . 2 8 13 . . 6 56 . . . 7 . . 22 . Explosive 24 | . . . . . . . . . . . . . 5 . . 6 . 6 6 . . . . . . 1 . . . . Electromagnetic 48 | . . . . 10 38 . . . . . . . . . . . . . . . . . . . . . . . . . Robot Hit Streak 26 | 5 14 2 . 5 10 23 6 . . . . . 8 26 18 11 4 . 7 . . 18 . . . . . . 15 . Robot Miss Streak 10 | 5 3 1 . 2 4 5 10 . . . . . 1 1 5 5 1 . 2 . . 1 . . . . . . 4 . Penetration Max 1 | . . . . . . 1 . . . . . . . 1 1 1 1 . . . . . . . . . . . . . Secondary Targets 8 | . 1 . . . . 1 . . . . . . . 1 . 2 3 . . . . . . . . . . . . . Max Gunslinging Chain 1 | . 1 . . . . 1 . . . . . . . 1 . 1 1 . . . . . . . . . . . . . Shots Hit Robots 631 | 14 66 2 . 18 46 132 42 . . . . . 17 33 45 78 10 . 5 . . 35 . 6 . 16 1 12 51 2 Core Hits 355 | 6 28 3 . 7 17 69 27 . . . . . 22 11 25 49 8 8 20 . . 16 . 2 . 12 1 5 18 1 Critical Kills 16 | . . . . . . 1 . . . . . . . 4 2 3 2 . . . . . . . . . . . 4 . Critical Parts Destroyed 20 | 1 1 . . . . 2 . . . . . . . 4 5 6 1 . . . . . . . . . . . . . Critical Strikes 58 | 1 6 . . . . 3 3 . . . . . 5 8 7 11 3 . . . . . . 2 . 2 1 . 5 1 Meltdown 4 | . . . . . . . . . . . . . . . . . . . . . . . . . . . . . 4 . Destroy 34 | 1 1 . . . . 3 . . . . . . . 8 7 11 3 . . . . . . . . . . . . . Blast 5 | . 5 . . . . . . . . . . . . . . . . . . . . . . . . . . . . . Sever 9 | . . . . . . . 3 . . . . . 5 . . . . . . . . . . . . . . . . 1 Impale 6 | . . . . . . . . . . . . . . . . . . . . . . . . 2 . 2 1 . 1 . Melee Attacks 201 | . . . . . . 2 20 12 2 . 4 15 17 . . . . . . . . . . 8 . 21 8 20 54 18 Impact . | . . . . . . . . . . . . . . . . . . . . . . . . . . . . . . . Slashing 103 | . . . . . . . 20 12 2 . 4 15 17 . . . . . . . . . . . . . . 12 3 18 Piercing 96 | . . . . . . . . . . . . . . . . . . . . . . . . 8 . 21 8 8 51 . Sneak Attacks 10 | . . . . . . 2 2 . . . . . . . . . . . . . . . . 2 . 3 . . 1 . Combat Hostiles 1 | . . . . . . . . . . . . . . . . . . . . . . . . . . 1 . . . . Follow-up Attacks 6 | . . . . . . . . . . . . . . . . . . . . . . . . . . . . 1 5 . Damage Inflicted 21734 | 226 1000 49 . 274 739 2340 1000 . . . . . 1215 1168 1435 3275 330 510 912 . . 1650 . 359 . 1170 65 707 3117 193 Guns 9230 | 226 340 . . 109 639 1940 253 . . . . . . 581 1435 2281 326 . . . . 900 . . . . . . 200 . Cannons 4731 | . 655 49 . 165 . 327 271 . . . . . . 587 . . . 229 . . . 737 . . . 253 . . 1458 . Explosions 3844 | . . . . . 95 55 . . . . . . 817 . . 990 . 281 912 . . . . . . 99 . . 595 . Melee 3810 | . . . . . . . 476 . . . . . 398 . . . . . . . . . . 359 . 818 65 707 864 123 Ramming 119 | . 5 . . . 5 18 . . . . . . . . . 4 4 . . . . 13 . . . . . . . 70 Kinetic 9137 | 226 995 49 . 165 208 2267 524 . . . . . . 581 1435 2223 214 . . . . 50 . . . . . . 200 . Thermal 5120 | . . . . . 95 . . . . . . . 146 587 . 58 112 229 . . . 1587 . . . 253 . . 2053 . Explosive 3008 | . . . . . . 55 . . . . . . 671 . . 990 . 281 912 . . . . . . 99 . . . . Electromagnetic 540 | . . . . 109 431 . . . . . . . . . . . . . . . . . . . . . . . . . Impact . | . . . . . . . . . . . . . . . . . . . . . . . . . . . . . . . Slashing 1540 | . . . . . . . 476 . . . . . 398 . . . . . . . . . . . . . . 543 . 123 Piercing 2270 | . . . . . . . . . . . . . . . . . . . . . . . . 359 . 818 65 164 864 . Highest Corruption 27 | . 1 1 1 8 4 6 . . . . . . . 15 15 2 . . . . . . . . . 5 5 5 27 27 Average Corruption 6 | . 1 1 1 1 4 5 . . . . . . . 14 12 2 . . . . . . . . . 5 5 1 19 27 Corruption Purged 15 | . . . . . . . . . . . . . . . 15 . . . . . . . . . . . . . . . Corruption Blocked . | . . . . . . . . . . . . . . . . . . . . . . . . . . . . . . . Effects 216 | . 10 1 3 7 6 76 . . . . . . . 26 23 1 . . . . . . . . . 7 7 7 30 12 Message Errors 44 | . 2 . 1 1 2 17 . . . . . . . 4 4 . . . . . . . . . . 2 1 4 5 1 Matter Fused 50 | . 4 1 . 3 1 14 . . . . . . . 4 7 1 . . . . . . . . . 1 2 2 7 3 Heat Flow Errors 28 | . 1 . . 2 1 11 . . . . . . . 2 2 . . . . . . . . . . 2 1 . 5 1 Energy Discharges 29 | . 1 . 1 1 . 12 . . . . . . . 5 3 . . . . . . . . . . . . . 3 3 Parts Rejected 1 | . . . . . . . . . . . . . . 1 . . . . . . . . . . . . . . . . Parts Fused 2 | . . . . . . 2 . . . . . . . . . . . . . . . . . . . . . . . . Data Loss (minor) 21 | . 1 . . . 1 6 . . . . . . . 3 3 . . . . . . . . . . 1 1 1 3 1 Data Loss (major) 15 | . 1 . 1 . 1 6 . . . . . . . 2 1 . . . . . . . . . . . 2 . 1 . Misfires 6 | . . . . . . 4 . . . . . . . 2 . . . . . . . . . . . . . . . . Alerts 8 | . . . . . . . . . . . . . . 1 1 . . . . . . . . . . 1 . . 3 2 Misdirections 2 | . . . . . . . . . . . . . . . . . . . . . . . . . . . . . 1 1 Weapon Failures 10 | . . . . . . 4 . . . . . . . 2 2 . . . . . . . . . . . . . 2 . Overload Shots 1 | . . . . . . . . . . . . . . . . . . . . . . 1 . . . . . . . . Effects 1 | . . . . . . . . . . . . . . . . . . . . . . 1 . . . . . . . . Heat Surge 1 | . . . . . . . . . . . . . . . . . . . . . . 1 . . . . . . . . Overflow Damage 513 | . 7 . . . . 15 46 . . . . . 49 . . 39 . 19 13 . . . . 31 . 47 . 1 246 . Projectiles 161 | . 7 . . . . . . . . . . . . . . . . 19 . . . . . . . . . . 135 . Explosions 156 | . . . . . . 15 . . . . . . 21 . . 39 . . 13 . . . . . . 20 . . 48 . Melee 196 | . . . . . . . 46 . . . . . 28 . . . . . . . . . . 31 . 27 . 1 63 . Knockbacks 24 | . 10 . . 2 . 5 7 . . . . . . . . . . . . . . . . . . . . . . . Impact . | . . . . . . . . . . . . . . . . . . . . . . . . . . . . . . . Kinetic 22 | . 10 . . 2 . 5 5 . . . . . . . . . . . . . . . . . . . . . . . Secondary 2 | . . . . . . . 2 . . . . . . . . . . . . . . . . . . . . . . . Self-Inflicted Damage 108 | . . . . . 42 . . . . . . . . . . . . 32 . . . . . . . . . . . 34 Shots 2 | . . . . . 1 . . . . . . . . . . . . 1 . . . . . . . . . . . . Rammed 17 | . 1 . . . 3 7 . . . . . . . . . 1 . 2 . . . . . . . . . . . 3 Targets Rammed 20 | . 1 . . . 4 7 . . . . . . . . . 1 1 2 . . . 1 . . . . . . . 3 Kicked 2 | . . . . . . . . . . . . . . . . . 1 . . . . 1 . . . . . . . . Crushed 1 | . . . . . 1 . . . . . . . . . . . . . . . . . . . . . . . . . Highest Temperature 351 | . 206 18 . 249 141 258 27 4 4 3 21 288 264 351 200 315 163 30 . . . 298 . . 20 289 101 . 292 82 Average Temperature 68 | . 34 10 . 69 28 80 4 2 2 2 4 73 72 182 64 82 59 13 . . . 103 . . 20 106 21 . 110 46 Received Heat Transfer 2899 | . 207 . . . 207 576 18 9 . . 21 . 87 63 18 618 192 . 9 . 9 460 . . . 27 . . 135 243 Effects 9 | . . . . . . . . . . . . 1 . 1 . 3 . . . . . . . . . 3 . . 1 . Energy Bleed 5 | . . . . . . . . . . . . 1 . 1 . . . . . . . . . . . 2 . . 1 . Interference 4 | . . . . . . . . . . . . . . . . 3 . . . . . . . . . 1 . . . . Siege Activations 7 | . . . . . . . . . . . . . . 1 1 5 . . . . . . . . . . . . . . Total Turns 88 | . . . . . . . . . . . . . . 27 20 41 . . . . . . . . . . . . . . Longest Duration 27 | . . . . . . . . . . . . . . 27 20 16 . . . . . . . . . . . . . . Robots Corrupted 2 | . . . . 1 1 . . . . . . . . . . . . . . . . . . . . . . . . . Combat Hostiles . | . . . . . . . . . . . . . . . . . . . . . . . . . . . . . . . Parts Fried 9 | . . . . 1 7 . . . . . . . . 1 . . . . . . . . . . . . . . . . Impact Corruptions . | . . . . . . . . . . . . . . . . . . . . . . . . . . . . . . . Robots Melted 5 | . . . . . . . . . . . . . . 1 . . . . . . . . . . . . . . 4 . Combat Hostiles 5 | . . . . . . . . . . . . . . 1 . . . . . . . . . . . . . . 4 . Parts Melted 10 | . . . . . . . . . . . . . . 1 . . 2 . . . . 6 . . . . . . 1 . Heat Transferred 7090 | . . . . . 100 . . . . . . . 150 1360 . 74 148 400 . . . 2680 . . . 560 . . 1618 . Parts Sabotaged 7 | . . . . . . . . . . . . . . . . . 3 . . . . . . . . . . . . 4 Parts Stolen . | . . . . . . . . . . . . . . . . . . . . . . . . . . . . . . . Parts Stripped . | . . . . . . . . . . . . . . . . . . . . . . . . . . . . . . . Power Chain Reactions 2 | . . . . . 2 . . . . . . . . . . . . . . . . . . . . . . . . . Alert | -11 -10 -10 -10 -9 -8 -8 -7 -7 -7 -7 -6 -6 -6 -6 -6 -6 -5 -5 -5 -5 -4 -4 -4 -4 -4 -3 -3 -3 -2 -2 ------- Run | Yrd Mat Min Exi Min Mat Sto Fac Low Low Dat Pro Fac Ext Cet Arc Hub Fac Upp Upp Zhi Pro Fac Was Fac DSF Res Arm Lab Res Qua Peak Influence 1988 | 25 342 194 . 135 183 411 385 . . . . 194 457 204 389 1988 1238 . . . . 230 80 42 . 229 191 . 212 1705 Initial 973 | . 16 124 . . . 1 157 . . . . 113 14 152 70 . 973 . . . . 150 80 . . . 14 . . 99 Average 161 | 11 197 192 . 49 92 205 209 . . . . 115 228 167 20 693 1139 . . . . 112 69 31 . 117 97 . 123 1649 Maximum Alert Level 5 | . 1 . . . . 2 1 . . . . . 2 1 1 5 4 . . . . 1 . . . 1 . . 1 5 Low Security (%) 74 | 100 48 100 . 100 100 43 53 . . . . 100 32 47 93 13 . . . . . 95 100 100 100 71 100 . 89 . Level 1 18 | . 51 . . . . 56 46 . . . . . 57 52 6 23 . . . . . 4 . . . 28 . . 10 . Level 2 2 | . . . . . . . . . . . . . 10 . . 32 . . . . . . . . . . . . . . Level 3 . | . . . . . . . . . . . . . . . . 5 18 . . . . . . . . . . . . . Level 4 2 | . . . . . . . . . . . . . . . . 18 81 . . . . . . . . . . . . . Level 5 . | . . . . . . . . . . . . . . . . 7 . . . . . . . . . . . . . . High Security . | . . . . . . . . . . . . . . . . . . . . . . . . . . . . . . . Max Security . | . . . . . . . . . . . . . . . . . . . . . . . . . . . . . . 99 Squads Dispatched 69 | . 4 . . . 2 4 4 . . . 1 3 2 . . 15 4 . . . . 6 . . . 4 2 . 6 12 Investigation 24 | . 3 . . . 1 2 2 . . . . 3 1 . . 7 . . . . . 1 . . . 3 1 . . . Extermination 6 | . . . . . . . . . . . . . . . . 1 . . . . . 2 . . . . 1 . 2 . Reinforcement 15 | . 1 . . . 1 2 2 . . . . . 1 . . 2 1 . . . . 3 . . . 1 . . 1 . Assault 21 | . . . . . . . . . . . 1 . . . . 5 3 . . . . . . . . . . . . 12 Garrison . | . . . . . . . . . . . . . . . . . . . . . . . . . . . . . . . Intercept 3 | . . . . . . . . . . . . . . . . . . . . . . . . . . . . . 3 . Searches Triggered . | . . . . . . . . . . . . . . . . . . . . . . . . . . . . . . . Construction Impeded 3 | . . . . . . . . . . . . . . . . 1 1 . . . . . . . . . . . 1 . Haulers Reinforced 2 | . . . . . . . 2 . . . . . . . . . . . . . . . . . . . . . . . Active Scanning Responses . | . . . . . . . . . . . . . . . . . . . . . . . . . . . . . . . Cargo Convoy Interrupts . | . . . . . . . . . . . . . . . . . . . . . . . . . . . . . . . Stealth | -11 -10 -10 -10 -9 -8 -8 -7 -7 -7 -7 -6 -6 -6 -6 -6 -6 -5 -5 -5 -5 -4 -4 -4 -4 -4 -3 -3 -3 -2 -2 --------- Run | Yrd Mat Min Exi Min Mat Sto Fac Low Low Dat Pro Fac Ext Cet Arc Hub Fac Upp Upp Zhi Pro Fac Was Fac DSF Res Arm Lab Res Qua Distress Signals 21 | . . . . . . 5 1 . . . . . 3 2 . . . . . . . 2 . . . 7 . . 1 . Communications Jammed 9 | . . . . . . . . . . . . . . . . . . . . . . 4 . . . . 1 . 3 1 Distress Signals 8 | . . . . . . . . . . . . . . . . . . . . . . 3 . . . . 1 . 3 1 Times Spotted 382 | . 31 1 . 4 12 29 14 6 3 . 23 3 16 9 15 52 28 4 8 . 5 30 . . 1 15 3 1 23 46 Peak Tracking Total 22 | . 3 1 . 4 2 4 3 3 4 . 13 2 6 5 1 5 18 4 5 . 2 10 . . 1 3 3 1 5 22 Tactical Retreats 31 | . 4 . . 1 . 3 . 1 1 . 4 1 3 . . . . . 2 . . 8 . . . 2 . . . 1 Traps | -11 -10 -10 -10 -9 -8 -8 -7 -7 -7 -7 -6 -6 -6 -6 -6 -6 -5 -5 -5 -5 -4 -4 -4 -4 -4 -3 -3 -3 -2 -2 ------- Run | Yrd Mat Min Exi Min Mat Sto Fac Low Low Dat Pro Fac Ext Cet Arc Hub Fac Upp Upp Zhi Pro Fac Was Fac DSF Res Arm Lab Res Qua Traps Triggered 27 | . 3 . . . . 3 4 . . . . 2 2 . . 7 3 . . . . 1 . . 1 1 . . . . Indirectly . | . . . . . . . . . . . . . . . . . . . . . . . . . . . . . . . Trap Hack Attempts 32 | . . . . . . 32 . . . . . . . . . . . . . . . . . . . . . . . . Triggered . | . . . . . . . . . . . . . . . . . . . . . . . . . . . . . . . Disarmed . | . . . . . . . . . . . . . . . . . . . . . . . . . . . . . . . Reprogrammed 4 | . . . . . . 4 . . . . . . . . . . . . . . . . . . . . . . . . Reused 1 | . . . . . . 1 . . . . . . . . . . . . . . . . . . . . . . . . Traps Extracted . | . . . . . . . . . . . . . . . . . . . . . . . . . . . . . . . Installed . | . . . . . . . . . . . . . . . . . . . . . . . . . . . . . . . Triggered 2 | . . . . . . 1 . . . . 1 . . . . . . . . . . . . . . . . . . . Machines | -11 -10 -10 -10 -9 -8 -8 -7 -7 -7 -7 -6 -6 -6 -6 -6 -6 -5 -5 -5 -5 -4 -4 -4 -4 -4 -3 -3 -3 -2 -2 ---------- Run | Yrd Mat Min Exi Min Mat Sto Fac Low Low Dat Pro Fac Ext Cet Arc Hub Fac Upp Upp Zhi Pro Fac Was Fac DSF Res Arm Lab Res Qua Machines Disabled 36 | . 1 . . 1 1 3 . . . . . . 4 . 4 11 2 . . . . . . . . . 2 1 1 5 Max in Single Turn 2 | . 1 . . 1 1 2 . . . . . . 2 . 1 2 1 . . . . . . . . . 1 1 1 1 Garrison Access 10 | . . . . . . . 2 . . . . 1 . . . 2 2 . . . . . . 1 . 1 . . 1 . Network Hub 4 | . . . . . . . . . . . . . . . . 4 . . . . . . . . . . . . . . Energy Cycler 1 | . . . . . . . . . . . . . 1 . . . . . . . . . . . . . . . . . Machines Repaired . | . . . . . . . . . . . . . . . . . . . . . . . . . . . . . . . Machines Dismantled . | . . . . . . . . . . . . . . . . . . . . . . . . . . . . . . . Machines Sabotaged 4 | . . . . . . . . . . . . . . . . 4 . . . . . . . . . . . . . . Overloaded Fab Kills . | . . . . . . . . . . . . . . . . . . . . . . . . . . . . . . . Hacking | -11 -10 -10 -10 -9 -8 -8 -7 -7 -7 -7 -6 -6 -6 -6 -6 -6 -5 -5 -5 -5 -4 -4 -4 -4 -4 -3 -3 -3 -2 -2 --------- Run | Yrd Mat Min Exi Min Mat Sto Fac Low Low Dat Pro Fac Ext Cet Arc Hub Fac Upp Upp Zhi Pro Fac Was Fac DSF Res Arm Lab Res Qua Machines Accessed 94 | . 6 . 2 1 1 12 13 . 2 4 . 10 4 . . 6 3 . . 5 . 4 . 3 . 5 4 1 8 . Terminals 49 | . 4 . . . 1 9 8 . . . . 7 4 . . 6 . . . . . 2 . 1 . 3 1 . 3 . Fabricators 8 | . . . . . . . 2 . . . . 1 . . . . . . . . . 1 . . . 1 2 . 1 . Repair Stations 5 | . . . . . . 1 . . . . . 1 . . . . . . . . . . . 1 . . 1 . 1 . Recycling Units 6 | . 2 . . . . 2 1 . . . . . . . . . . . . . . 1 . . . . . . . . Scanalyzers 4 | . . . . . . . . . . . . . . . . . 1 . . . . . . . . 1 . . 2 . Garrison Access 7 | . . . . . . . 2 . . . . 1 . . . . 2 . . . . . . 1 . . . . 1 . Total Hacks 428 | . 15 . 2 1 4 29 37 . 8 23 . 35 19 . . 22 9 . . 18 . 39 . 9 . 20 19 6 113 . Successful 225 | . 10 . 2 1 2 17 15 . 8 23 . 17 4 . . 8 5 . . 18 . 24 . 6 . 8 7 6 44 . Failed 203 | . 5 . . . 2 12 22 . . . . 18 15 . . 14 4 . . . . 15 . 3 . 12 12 . 69 . Catastrophic 44 | . . . . . 1 3 5 . . . . 2 3 . . 4 . . . . . 2 . . . 3 4 . 17 . Database Lockouts . | . . . . . . . . . . . . . . . . . . . . . . . . . . . . . . . Manual 172 | . 9 . 1 . 4 8 20 . . . . 15 12 1 . 21 . . . . . 27 . 3 . 4 3 . 44 . Terminals 245 | . 13 . . . 4 19 28 . . . . 23 19 . . 22 . . . . . 27 . 1 . 11 4 . 74 . Fabricators 32 | . . . . . . . 3 . . . . 5 . . . . . . . . . 5 . . . 2 9 . 8 . Repair Stations 27 | . . . . . . 7 . . . . . 5 . . . . . . . . . . . 7 . . 6 . 2 . Recycling Units 13 | . 2 . . . . 3 1 . . . . . . . . . . . . . . 7 . . . . . . . . Scanalyzers 39 | . . . . . . . . . . . . . . . . . 5 . . . . . . . . 7 . . 27 . Garrison Access 14 | . . . . . . . 5 . . . . 2 . . . . 4 . . . . . . 1 . . . . 2 . Terminal Hacks 135 | . 7 . 2 1 2 9 8 . 8 23 . 9 3 . . 2 . . . 18 . 17 . 1 . 3 1 6 15 . Record 28 | . . . 1 . . . . . 7 7 . . . . . . . . . 6 . . . . . . . 6 1 . Part Schematic 19 | . . . . . . . 5 . . 9 . . . . . . . . . 4 . . . . . . . . 1 . Robot Schematic 4 | . . . . . . . . . . 4 . . . . . . . . . . . . . . . . . . . . Robot Analysis 12 | . 3 . . . 2 . . . . . . . . . . . . . . 4 . 2 . . . . . . 1 . Prototype ID Bank 16 | . 2 . . . . 2 1 . . 3 . 2 1 . . . . . . 4 . 1 . . . . . . . . Open Door 5 | . . . . 1 . 3 . . 1 . . . . . . . . . . . . . . . . . . . . . Open DSF 1 | . . . . . . . . . . . . . . . . . . . . . . . . 1 . . . . . . Branch Access Points 5 | . . . . . . . . . . . . 1 1 . . . . . . . . 1 . . . 1 . . 1 . Emergency Access Points 1 | . . . . . . . . . . . . . . . . . . . . . . . . . . . . . 1 . Machine Index 2 | . . . . . . . 1 . . . . . . . . . . . . . . . . . . . . . 1 . Terminal Index 3 | . . . . . . . . . . . . 1 . . . 1 . . . . . 1 . . . . . . . . Fabricator Index 2 | . . . . . . . . . . . . 1 . . . . . . . . . 1 . . . . . . . . Alert Level 3 | . . . . . . 1 . . . . . . . . . . . . . . . 1 . . . . . . 1 . Unreport Threat 10 | . . . . . . 2 . . . . . 1 1 . . 1 . . . . . 2 . . . 1 . . 2 . Locate Traps 2 | . 1 . . . . . . . . . . . . . . . . . . . . . . . . . . . 1 . Dispatch Records 1 | . . . . . . . . . . . . . . . . . . . . . . . . . . 1 . . . . Maintenance Status 3 | . . . . . . 1 . . . . . 1 . . . . . . . . . 1 . . . . . . . . Security Status 1 | . . . . . . . . . . . . . . . . . . . . . . . . . . . . . 1 . Patrol Status 1 | . . . . . . . . . . . . . . . . . . . . . . 1 . . . . . . . . Investigation Status 1 | . . . . . . . . . . . . . . . . . . . . . . 1 . . . . . . . . Reinforcement Status 2 | . . . . . . . . . . . . . . . . . . . . . . 2 . . . . . . . . Recall Investigation 1 | . . . . . . . . . . . . 1 . . . . . . . . . . . . . . . . . . Recall Extermination 1 | . . . . . . . . . . . . . . . . . . . . . . 1 . . . . . . . . Recall Reinforcements 3 | . 1 . . . . . . . . . . . . . . . . . . . . 2 . . . . . . . . Hauler Manifests 3 | . . . . . . . 1 . . . . . . . . . . . . . . . . . . . . . 2 . Registered Components 1 | . . . . . . . . . . . . 1 . . . . . . . . . . . . . . . . . . Registered Prototypes 1 | . . . . . . . . . . . . . . . . . . . . . . . . . . . . . 1 . Zone Layout 2 | . . . . . . . . . . . . . . . . . . . . . . . . . . . 1 . 1 . Derelict Proto ID Bank 1 | . . . 1 . . . . . . . . . . . . . . . . . . . . . . . . . . . Fabricator Hacks 11 | . . . . . . . 2 . . . . 3 . . . . . . . . . 1 . . . 2 2 . 1 . Network Status 3 | . . . . . . . 1 . . . . . . . . . . . . . . . . . . . 1 . 1 . Load Schematic 5 | . . . . . . . 1 . . . . 2 . . . . . . . . . 1 . . . 1 . . . . Build 3 | . . . . . . . . . . . . 1 . . . . . . . . . . . . . 1 1 . . . Repair Station Hacks 15 | . . . . . . 6 . . . . . 1 . . . . . . . . . . . 3 . . 3 . 2 . Scan Component 9 | . . . . . . 3 . . . . . 1 . . . . . . . . . . . 2 . . 2 . 1 . Repair 6 | . . . . . . 3 . . . . . . . . . . . . . . . . . 1 . . 1 . 1 . Recycling Unit Hacks 2 | . . . . . . . . . . . . . . . . . . . . . . 2 . . . . . . . . Retrieve Components 2 | . . . . . . . . . . . . . . . . . . . . . . 2 . . . . . . . . Scanalyzer 21 | . . . . . . . . . . . . . . . . . 3 . . . . . . . . 3 . . 15 . Insert Component 12 | . . . . . . . . . . . . . . . . . 1 . . . . . . . . 3 . . 8 . Analyze 9 | . . . . . . . . . . . . . . . . . 2 . . . . . . . . . . . 7 . Garrison Access Hacks 7 | . . . . . . . 2 . . . . 1 . . . . 2 . . . . . . 1 . . . . 1 . Seal Access 7 | . . . . . . . 2 . . . . 1 . . . . 2 . . . . . . 1 . . . . 1 . Unauthorized Hacks 34 | . 3 . . . . 2 3 . . . . 3 1 . . 6 . . . . . 4 . 1 . . 1 . 10 . Terminals 20 | . 1 . . . . . 2 . . . . 2 1 . . 6 . . . . . . . . . . . . 8 . Track 1 | . . . . . . . . . . . . . . . . . . . . . . . . . . . . . 1 . Assimilate 1 | . . . . . . . 1 . . . . . . . . . . . . . . . . . . . . . . . Botnet 8 | . 1 . . . . . 1 . . . . 2 1 . . . . . . . . . . . . . . . 3 . Detonate 2 | . . . . . . . . . . . . . . . . . . . . . . . . . . . . . 2 . Disrupt 1 | . . . . . . . . . . . . . . . . . . . . . . . . . . . . . 1 . Operators 1 | . . . . . . . . . . . . . . . . . . . . . . . . . . . . . 1 . Sabotage 6 | . . . . . . . . . . . . . . . . 6 . . . . . . . . . . . . . . Fabricators 8 | . . . . . . . 1 . . . . 1 . . . . . . . . . 3 . . . . 1 . 2 . Report 3 | . . . . . . . . . . . . . . . . . . . . . . 1 . . . . 1 . 1 . Fabnet 2 | . . . . . . . . . . . . . . . . . . . . . . 1 . . . . . . 1 . Recompile 3 | . . . . . . . 1 . . . . 1 . . . . . . . . . 1 . . . . . . . . Repair Stations 1 | . . . . . . . . . . . . . . . . . . . . . . . . 1 . . . . . . Mechanics 1 | . . . . . . . . . . . . . . . . . . . . . . . . 1 . . . . . . Recycling Units 5 | . 2 . . . . 2 . . . . . . . . . . . . . . . 1 . . . . . . . . Mask 1 | . . . . . . . . . . . . . . . . . . . . . . 1 . . . . . . . . Tunnel 4 | . 2 . . . . 2 . . . . . . . . . . . . . . . . . . . . . . . . Scanalyzers . | . . . . . . . . . . . . . . . . . . . . . . . . . . . . . . . Garrison Access . | . . . . . . . . . . . . . . . . . . . . . . . . . . . . . . . Data Cores Recovered 1 | . . . . . 1 . . . . . . . . . . . . . . . . . . . . . . . . . Used 1 | . . . . . 1 . . . . . . . . . . . . . . . . . . . . . . . . . Hacking Detections 62 | . 4 . . . 1 8 11 . . . . 9 4 1 . 4 1 . . . . 4 . 1 . 4 4 . 6 . Full Trace Events 4 | . . . . . 1 . . . . . . 1 1 . . . . . . . . . . . . . 1 . . . Feedback Events . | . . . . . . . . . . . . . . . . . . . . . . . . . . . . . . . Feedback Blocked . | . . . . . . . . . . . . . . . . . . . . . . . . . . . . . . . Robot Schematics Acquired 4 | . . . . . . . . . . 4 . . . . . . . . . . . . . . . . . . . . Robots Built 1 | . . . . . . . . . . . . . . . . . . . . . . . . . . . 1 . . . Authchips . | . . . . . . . . . . . . . . . . . . . . . . . . . . . . . . . Time 102 | . . . . . . . . . . . . . . . . . . . . . . . . . . . 102 . . . Total Robot Build Rating 8 | . . . . . . . . . . . . . . . . . . . . . . . . . . . 8 . . . Part Schematics Acquired 24 | . . . . . . . 5 . . 9 . . . . . . 1 . . 4 . . . . . . . . 5 . Parts Built 3 | . . . . . . . . . . . . 2 . . . . . . . . . . . . . 1 . . . . Authchips 2 | . . . . . . . . . . . . 1 . . . . . . . . . . . . . 1 . . . . Time 112 | . . . . . . . . . . . . 36 . . . . . . . . . . . . . 76 . . . . Total Part Build Rating 11 | . . . . . . . . . . . . 6 . . . . . . . . . . . . . 5 . . . . Parts Repaired 5 | . . . . . . 3 . . . . . . . . . . . . . . . . . 1 . . 1 . . . Time 189 | . . . . . . 90 . . . . . . . . . . . . . . . . . 19 . . 12 . 68 . Parts Recycled . | . . . . . . . . . . . . . . . . . . . . . . . . . . . . . . . Recycled Matter . | . . . . . . . . . . . . . . . . . . . . . . . . . . . . . . . Retrieved Matter . | . . . . . . . . . . . . . . . . . . . . . . . . . . . . . . . Retrieved Components 13 | . . . . . . . . . . . . . . . . . . . . . . 13 . . . . . . . . Parts Scanalyzed 7 | . . . . . . . . . . . . . . . . . 1 . . . . . . . . 2 . . 4 . Part Schematics Acquired 5 | . . . . . . . . . . . . . . . . . 1 . . . . . . . . . . . 4 . Parts Damaged 6 | . . . . . . . . . . . . . . . . . 1 . . . . . . . . 2 . . 3 . Bothacking | -11 -10 -10 -10 -9 -8 -8 -7 -7 -7 -7 -6 -6 -6 -6 -6 -6 -5 -5 -5 -5 -4 -4 -4 -4 -4 -3 -3 -3 -2 -2 ------------ Run | Yrd Mat Min Exi Min Mat Sto Fac Low Low Dat Pro Fac Ext Cet Arc Hub Fac Upp Upp Zhi Pro Fac Was Fac DSF Res Arm Lab Res Qua Used RIF Installer . | . . . . . . . . . . . . . . . . . . . . . . . . . . . . . . . Robots Hacked 2 | . . . . . . 2 . . . . . . . . . . . . . . . . . . . . . . . . Non-combat 2 | . . . . . . 2 . . . . . . . . . . . . . . . . . . . . . . . . Combat . | . . . . . . . . . . . . . . . . . . . . . . . . . . . . . . . Robot Hacks Applied 2 | . . . . . . 2 . . . . . . . . . . . . . . . . . . . . . . . . parse_system 1 | . . . . . . 1 . . . . . . . . . . . . . . . . . . . . . . . . no_distress 1 | . . . . . . 1 . . . . . . . . . . . . . . . . . . . . . . . . Relay Couplers Released 7 | . . . . . . . . . . . . . . . . 4 . . . . . . . . . 3 . . . . Machine Destruction 7 | . . . . . . . . . . . . . . . . 4 . . . . . . . . . 3 . . . . Fabnet Peak Effective % . | . . . . . . . . . . . . . . . . . . . . . . . . . . . . . . . Robots Rewired 5 | . . . . . . . 1 . . . . . 3 . . . . . . . . . . . . . 1 . . . Allies Hacked . | . . . . . . . . . . . . . . . . . . . . . . . . . . . . . . . Hacks Repelled . | . . . . . . . . . . . . . . . . . . . . . . . . . . . . . . . Allies | -11 -10 -10 -10 -9 -8 -8 -7 -7 -7 -7 -6 -6 -6 -6 -6 -6 -5 -5 -5 -5 -4 -4 -4 -4 -4 -3 -3 -3 -2 -2 -------- Run | Yrd Mat Min Exi Min Mat Sto Fac Low Low Dat Pro Fac Ext Cet Arc Hub Fac Upp Upp Zhi Pro Fac Was Fac DSF Res Arm Lab Res Qua Total Allies 50 | . . 2 . . . 12 2 . . . . . 7 5 . . . . . . . . 20 . . . 2 . . . Largest Group 20 | . . 2 2 . . 12 12 1 1 . . . 5 5 5 5 2 . . . . . 20 20 20 . 2 . . . Highest-Rated Group 727 | . . 49 49 . . 289 289 26 26 . . . 192 480 480 480 192 . . . . . 727 727 727 . 96 . . . Highest-Rated Ally 152 | . . 31 31 . . 100 100 26 26 . . . 152 152 96 96 96 . . . . . 46 46 46 . 49 . . . Total Orders 41 | . . . . . 1 2 1 . . . . . . 5 14 9 . . 2 . 4 . . . . . 3 . . . STAY 17 | . . . . . . 1 . . . . . . . 1 8 6 . . . . . . . . . . 1 . . . FOLLOW 15 | . . . . . . 1 . . . . . . . 4 6 3 . . . . . . . . . . 1 . . . AID 1 | . . . . . . . . . . . . . . . . . . . . . . . . . . . 1 . . . RETURN 8 | . . . . . 1 . 1 . . . . . . . . . . . 2 . 4 . . . . . . . . . Ally Attacks 324 | . . . . . . 36 55 . . . . . 38 31 23 122 12 . . . . . . . . . 7 . . . Total Damage 10176 | . . . . . . 905 704 . . . . . 951 1238 832 5049 405 . . . . . . . . . 92 . . . Kills 71 | . . . . . . 9 6 . . . . . 11 2 2 37 2 . . . . . . . . . 2 . . . Allies Corrupted . | . . . . . . . . . . . . . . . . . . . . . . . . . . . . . . . Allies Melted . | . . . . . . . . . . . . . . . . . . . . . . . . . . . . . . . Intel | -11 -10 -10 -10 -9 -8 -8 -7 -7 -7 -7 -6 -6 -6 -6 -6 -6 -5 -5 -5 -5 -4 -4 -4 -4 -4 -3 -3 -3 -2 -2 ------- Run | Yrd Mat Min Exi Min Mat Sto Fac Low Low Dat Pro Fac Ext Cet Arc Hub Fac Upp Upp Zhi Pro Fac Was Fac DSF Res Arm Lab Res Qua Robot Analysis Total 12 | . 3 . . . 2 . . . . . . . . . . . . . . 4 . 2 . . . . . . 1 . Derelict Logs Recovered 9 | . . . . 2 . . . 1 2 . 2 . . . . . . 1 . . 1 . . . . . . . . . Drone Launches 10 | . . . . . 1 . 1 . . . . . . . . . . 1 1 . 6 . . . . . . . . . Drone Recoveries 10 | . . . . . 1 . 1 . . . . . . . . . . . 2 . 6 . . . . . . . . . Exploration | -11 -10 -10 -10 -9 -8 -8 -7 -7 -7 -7 -6 -6 -6 -6 -6 -6 -5 -5 -5 -5 -4 -4 -4 -4 -4 -3 -3 -3 -2 -2 ------------- Run | Yrd Mat Min Exi Min Mat Sto Fac Low Low Dat Pro Fac Ext Cet Arc Hub Fac Upp Upp Zhi Pro Fac Was Fac DSF Res Arm Lab Res Qua Turns Passed 30578 | 128 1147 53 516 561 459 2469 955 198 144 18 192 530 454 661 10332 1576 427 3388 634 222 663 962 458 460 21 516 268 908 1032 226 Spaces Moved 16547 | 50 506 30 320 316 199 1139 1807 486 303 78 512 1109 813 256 1033 716 298 700 484 163 503 1284 310 279 58 718 386 239 1117 335 Core 962 | 14 . . . . . . . . . . . . . . 675 . . 198 . . . . . . . . . . . 75 Treads 3771 | 36 506 30 320 316 165 1139 . . . . . . . 217 358 684 . . . . . . . . . . . . . . Legs 2314 | . . . . . . . . . . . . . . . . 32 298 502 484 163 503 332 . . . . . . . . Wheels 71 | . . . . . 34 . . . . . . . . . . . . . . . . . . . . . . . 37 . Hover 516 | . . . . . . . . . . . . . . . . . . . . . . . . . . . . . 257 259 Flight 8913 | . . . . . . . 1807 486 303 78 512 1109 813 39 . . . . . . . 952 310 279 58 718 386 239 823 1 Fastest Speed 17 | 50 160 160 160 160 115 160 23 23 23 23 23 20 20 88 160 120 120 120 120 120 120 17 25 25 25 19 24 31 22 36 Average Speed 143 | 133 160 160 160 160 153 160 23 23 23 23 23 20 20 151 970 158 125 467 120 120 122 55 25 25 25 22 24 33 49 40 Slowest Speed 1400 | 160 160 160 160 160 160 160 23 26 23 23 23 23 88 160 1400 190 190 1350 120 190 190 190 25 25 25 25 31 108 365 194 Overloaded Moves 19 | . . . . . . . . . . . . . . . . . . . . . . 19 . . . . . . . . Propulsion Burnouts . | . . . . . . . . . . . . . . . . . . . . . . . . . . . . . . . Robots Hopped 46 | . . . . . . . 24 . . . 1 7 1 . . . . . . . . 12 1 . . . . . . . Cave-ins Triggered . | . . . . . . . . . . . . . . . . . . . . . . . . . . . . . . . Teleports 2 | . . . . . . . . . . . . . . . . . . . . . . . . . . . 1 . . 1 Exploration Rate (%) 51 | 4 91 14 59 75 16 94 50 62 54 69 61 25 72 56 90 47 8 67 62 61 59 21 94 5 94 14 24 96 19 43 Regions Visited 30 Branch Regions 19 Pre-discovered Areas 11 | . 2 . 1 1 . 3 . . . 1 . . . . . . . . . 3 . . . . . . . . . . Known Exits Taken 11 | . . . . . 1 . 1 . 1 . . 1 1 . . 1 . 1 1 . . . . 1 . 1 . . 1 . Unknown Exits Taken 16 | 1 1 1 1 1 . 1 . 1 . 1 1 . . 1 1 . 1 . . 1 1 . . . . . 1 1 . . Scrap Searched 14 | . . . . 1 . . . 2 3 . 2 . . . . . . 2 2 . 2 . . . . . . . . . Spaces Dug 125 | . . . . . . . 2 12 2 . 4 15 2 . . 6 1 26 . . 4 1 . . . 15 4 1 20 10 Terrain Destroyed 365 | . . . . . 9 10 2 12 2 . 4 15 45 1 19 74 2 47 27 . 4 5 . . . 15 4 1 57 10 Melee 75 | . . . . . . . 2 12 2 . 4 15 2 . . . . . . . . . . . . 3 4 1 20 10 Projectile 84 | . . . . . . . . . . . . . . 1 19 47 2 4 . . 4 5 . . . . . . 2 . AOE 206 | . . . . . 9 10 . . . . . . 43 . . 27 . 43 27 . . . . . . 12 . . 35 . Terrain Rammed . | . . . . . . . . . . . . . . . . . . . . . . . . . . . . . . . Walls Destroyed . | . . . . . . . . . . . . . . . . . . . . . . . . . . . . . . . Machines Disabled . | . . . . . . . . . . . . . . . . . . . . . . . . . . . . . . . Actions | -11 -10 -10 -10 -9 -8 -8 -7 -7 -7 -7 -6 -6 -6 -6 -6 -6 -5 -5 -5 -5 -4 -4 -4 -4 -4 -3 -3 -3 -2 -2 --------- Run | Yrd Mat Min Exi Min Mat Sto Fac Low Low Dat Pro Fac Ext Cet Arc Hub Fac Upp Upp Zhi Pro Fac Was Fac DSF Res Arm Lab Res Qua Total 22177 | 81 743 31 325 345 295 1614 2256 553 374 77 580 1385 1070 493 1258 1004 334 763 531 188 545 1458 689 649 63 1027 545 1041 1460 400 Wait 3913 | . 148 . . 1 32 266 343 55 64 . 58 243 170 177 151 169 3 9 39 . 21 79 352 362 . 187 107 740 135 2 Move 16435 | 49 505 29 319 315 198 1138 1765 485 302 77 509 1095 810 255 1032 715 297 699 483 162 502 1261 307 278 57 717 385 238 1116 335 Hop 37 | . . . . . . . 17 . . . 1 6 1 . . . . . . . . 11 1 . . . . . . . Pick Up 210 | 11 18 . 1 4 10 26 11 . 3 . 3 4 3 11 6 6 6 11 1 3 4 3 4 . . 24 6 8 10 13 Fast Attach 167 | 4 . . 2 1 5 11 2 . . . . 1 . 3 6 14 9 3 . 10 1 15 11 1 . 11 8 10 33 6 Attach 104 | 3 . . . . 5 5 3 . 1 . 1 7 5 3 2 4 4 6 . . 4 11 . . . 6 4 6 20 4 Detach 50 | . . . . . . . . . . . 1 5 2 . 2 . . . . . 2 6 . . . 7 3 5 16 1 Swap 119 | . 8 . . 6 5 10 8 . . . . 8 3 7 7 8 . 11 1 2 . 6 1 . . 4 6 3 11 4 Drop 227 | . 12 . 3 5 8 27 10 1 2 . 3 1 . 10 10 5 6 4 1 11 5 12 13 . . 17 12 13 22 14 Fire 520 | 14 51 2 . 13 28 90 19 . . . . . 5 27 42 82 8 18 6 . 6 53 . . . 8 . . 48 . Melee 194 | . . . . . . 2 20 12 2 . 4 15 17 . . . . . . . . . . 8 . 21 8 18 49 18 Ram 5 | . . . . . . . . . . . . . . . . . . 2 . . . . . . . . . . . 3 Kick 2 | . . . . . . . . . . . . . . . . . 1 . . . . 1 . . . . . . . . Crush 13 | . 1 . . . 4 7 . . . . . . . . . 1 . . . . . . . . . . . . . . Escape Stasis 93 | . . . . . . . 36 . . . . . 26 . . . . . . . . . . . 6 25 . . . . Rewire 56 | . . . . . . . 22 . . . . . 28 . . . . . . . . . . . . . 6 . . . Trap 32 | . . . . . . 32 . . . . . . . . . . . . . . . . . . . . . . . . Miscellaneous . | . . . . . . . . . . . . . . . . . . . . . . . . . . . . . . . Route ------- -11/Scrapyard -10/Materials (discovered 4 exits: [*Mat x3] / [*Min]) -10/Mines -10/Exiles -9/Mines -8/Materials -8/Storage -7/Factory (discovered 3 exits: *Fac x2 / *Low) -7/Lower Caves (discovered 2 exits: *Low / [*Zio]) -7/Lower Caves -7/Data Miner -6/Proximity Caves -6/Factory (discovered 5 exits: Fac / *Low x2 / *Ext x2) -6/Extension (discovered 3 exits: *Fac x2 / *Cet) -6/Cetus (discovered 2 exits: *Fac / [*Arc]) -6/Archives (discovered 3 exits: *Fac / *Hub x2) -6/Hub_04(d) -5/Factory -5/Upper Caves -5/Upper Caves (discovered 2 exits: *Fac / *Zhi) -5/Zhirov -4/Proximity Caves -4/Factory (discovered 2 exits: Upp x2) -4/Waste -4/Factory -4/DSF -3/Research (discovered 4 exits: *Res / *Arm / *Tes x2) -3/Armory -3/Lab -2/Research (discovered 2 exits: *Qua x2) -2/Quarantine (discovered 1 exit: [*Acc]) History --------- Turn | Location | Event 30 | -11/Scrapyard | Discovered new exit (range 15) 129 | -11/Scrapyard | Entered Materials 312 | -10/Materials | Build established: Mutant 472 | -10/Materials | Discovered new exit (range 13) 580 | -10/Materials | Discovered new exit (range 11) 728 | -10/Materials | Discovered new exit (range 7) 1156 | -10/Materials | Discovered new exit (range 8) 1276 | -10/Materials | Entered Mines 1321 | -10/Mines | Deemed a non-threat by the Exiles lab entrance 1321 | -10/Mines | Discovered new exit (range 5) 1329 | -10/Mines | Entered Exiles 1329 | -10/Exiles | Accompanied by 2 allies 1359 | -10/Exiles | Led the pair of lost Derelicts to a safe place 1374 | -10/Exiles | Met 8R-AWN 1398 | -10/Exiles | Met EX-HEX 1442 | -10/Exiles | Met EX-BIN 1462 | -10/Exiles | Aligned with FarCom system 1463 | -10/Exiles | Given EX-Vault access code 1500 | -10/Exiles | Opened EX-Vault 1513 | -10/Exiles | Found Gui. Plasma Cannon 1551 | -10/Exiles | Warned to stay clear of 0b10 Research branches 1593 | -10/Exiles | Met EX-DEC 1601 | -10/Exiles | Learned location of Zion (-6) 1823 | -10/Exiles | Discovered new exit (range 14) 1845 | -10/Exiles | Left Exiles lab with Gui. Plasma Cannon 1845 | -10/Exiles | Entered Mines 1847 | -9/Mines | Learned Materials terminal intel 2185 | -9/Mines | Found the Drone Emporium 2191 | -9/Mines | Found Prototype Device 2192 | -9/Mines | Identified Sensor Drone Bay 2290 | -9/Mines | YI-UF0 nonchalantly dropped a Grenade Launcher on the ground 2304 | -9/Mines | Murdered YI-UF0 2304 | -9/Mines | Destroyed YI-UF0 2311 | -9/Mines | Found Corrupted Prototype Launcher 2344 | -9/Mines | Identified YI-UF0's Doublenader 2390 | -9/Mines | Discovered new exit (range 6) 2406 | -9/Mines | Entered Materials 2406 | -8/Materials | Evolved 4 slots: Propulsion x1, Utility x3 2407 | -8/Materials | Loaded intel: 12 terminal locations 2720 | -8/Materials | Build established: Scavenger-Mutant 2791 | -8/Materials | Discovered new exit (range 11) 2828 | -8/Materials | Identified exit to Storage 2865 | -8/Materials | Entered Storage 3031 | -8/Storage | Found Prototype Launcher 3090 | -8/Storage | Assisted by bots powering up and referring to "LRC-V3" 3100 | -8/Storage | Learned location of Armory (-3) 3405 | -8/Storage | Build established: Commander-Mutant 3515 | -8/Storage | Repaired Lgt. Treads 3543 | -8/Storage | Repaired Lgt. Armor Plating 3582 | -8/Storage | Repaired Lgt. Nuclear Core 4149 | -8/Storage | Lost 9 parts (1p3n3u2w) 4270 | -8/Storage | Discovered new exit (range 16) 4543 | -8/Storage | Met 01-MTF 5334 | -8/Storage | Entered Factory 5334 | -7/Factory | Accompanied by 12 allies (01-MTF) 5334 | -7/Factory | Evolved 2 slots: Propulsion x2 5339 | -7/Factory | 01-MTF left 5603 | -7/Factory | Discovered new exit (range 12) 5639 | -7/Factory | Build established: Commander-Sprinter 5739 | -7/Factory | Discovered new exit (range 11) 5739 | -7/Factory | Identified exit to Lower Caves 5995 | -7/Factory | Discovered new exit (range 8) 6129 | -7/Factory | Build established: Hacker-Sprinter 6289 | -7/Factory | Entered Lower Caves 6289 | -7/Lower Caves | Accompanied by 1 ally 6294 | -7/Lower Caves | Encountered a Warlord checkpoint 6441 | -7/Lower Caves | A Derelict revealed a hidden shortcut to a safe place 6467 | -7/Lower Caves | Learned Factory garrison access intel 6480 | -7/Lower Caves | Discovered new exit (range 8) 6487 | -7/Lower Caves | Entered another Lower Caves area 6487 | -7/Lower Caves | Accompanied by 1 ally 6501 | -7/Lower Caves | Learned Factory emergency access door positions 6501 | -7/Lower Caves | Learned Armory stockpile data 6501 | -7/Lower Caves | Learned Factory garrison access intel 6519 | -7/Lower Caves | Identified exit to Data Miner 6591 | -7/Lower Caves | Learned Factory garrison access intel 6631 | -7/Lower Caves | Entered Data Miner 6631 | -7/Data Miner | Discovered new exit (range 6) 6636 | -7/Data Miner | Met Data Miner 6640 | -7/Data Miner | Learned location of Section 7 (-2) 6640 | -7/Data Miner | Acquired the access code to Warlord's prototype stash 6643 | -7/Data Miner | Received God Mode back door access code from Data Miner 6649 | -7/Data Miner | Entered Proximity Caves 6657 | -6/Proximity Caves | Learned Factory non-interactive machine intel 6781 | -6/Proximity Caves | Learned 4 Factory zone layouts 6788 | -6/Proximity Caves | Attracted the attention of an 0b10 outpost 6806 | -6/Proximity Caves | Encountered a Derelict sapper outpost 6840 | -6/Proximity Caves | Discovered new exit (range 3) 6841 | -6/Proximity Caves | Entered Factory 6841 | -6/Factory | Evolved 2 slots: Power x1, Propulsion x1 6842 | -6/Factory | Identified exit to Factory 6844 | -6/Factory | Loaded intel: 191 non-interactive machine locations 6845 | -6/Factory | Loaded intel: 3 garrison access locations 7139 | -6/Factory | Discovered new exit (range 8) 7244 | -6/Factory | Identified exit to Lower Caves 7244 | -6/Factory | Identified exit to Extension 7283 | -6/Factory | Fabricated Imp. Propulsion Shielding (x2) 7371 | -6/Factory | Entered Extension 7384 | -6/Extension | Identified exit to Cetus 7388 | -6/Extension | Rescued a captive Derelict 7395 | -6/Extension | Disrupted transfer network 7395 | -6/Extension | Rescued a captive Derelict 7438 | -6/Extension | Energy Cycler disabled 7438 | -6/Extension | Rescued a captive Derelict 7438 | -6/Extension | Rescued a captive Derelict 7439 | -6/Extension | Rescued a captive Derelict 7442 | -6/Extension | Rescued a captive Derelict 7443 | -6/Extension | Rescued a captive Derelict 7520 | -6/Extension | Spotted B-75 Beast 7682 | -6/Extension | Discovered exit to Factory (range 12) 7684 | -6/Extension | Rescued A7 7708 | -6/Extension | Allies destroyed B-75 Beast 7740 | -6/Extension | Found Prototype Protection 7741 | -6/Extension | Identified Med. Regenerative Plating 7764 | -6/Extension | Build established: Sprinter 7792 | -6/Extension | Discovered exit to Factory (range 15) 7825 | -6/Extension | Entered Cetus 7825 | -6/Cetus | Accompanied by 2 allies (A7) 7830 | -6/Cetus | Acquired a Cetus Manufacturing Module code from A7 7838 | -6/Cetus | Spotted Cetus Guard 7838 | -6/Cetus | Spotted Cetus Guard 7846 | -6/Cetus | Destroyed Cetus Guard 7848 | -6/Cetus | Spotted Cetus Guard 7853 | -6/Cetus | Allies destroyed Cetus Guard 7859 | -6/Cetus | Destroyed Cetus Guard 7861 | -6/Cetus | Spotted Cetus Guard 7889 | -6/Cetus | Destroyed Cetus Guard 7895 | -6/Cetus | Extracted ID and sensor layout for unrecognized location from A7's data core 7948 | -6/Cetus | System corruption reached 10% 7996 | -6/Cetus | Started Cetus Manufacturing Module 8021 | -6/Cetus | Manufactured an Enhanced Grunt 8046 | -6/Cetus | Manufactured an Enhanced Grunt 8071 | -6/Cetus | Manufactured an Enhanced Grunt 8096 | -6/Cetus | Manufactured an Enhanced Grunt 8121 | -6/Cetus | Manufactured an Enhanced Grunt 8171 | -6/Cetus | Discovered new exit (range 16) 8180 | -6/Cetus | Build established: Scavenger-Mutant 8290 | -6/Cetus | Spotted Cetus Guard 8291 | -6/Cetus | Spotted Cetus Guard 8301 | -6/Cetus | Spotted Cetus Guard 8303 | -6/Cetus | Spotted Cetus Guard 8305 | -6/Cetus | Destroyed Cetus Guard 8308 | -6/Cetus | Destroyed Cetus Guard 8311 | -6/Cetus | Destroyed Cetus Guard 8317 | -6/Cetus | Destroyed Cetus Guard 8398 | -6/Cetus | Discovered exit to Factory (range 16) 8408 | -6/Cetus | Met Revision 17 8486 | -6/Cetus | Entered Archives 8486 | -6/Archives | Accompanied by 5 allies 8679 | -6/Archives | Discovered new exit (range 14) 8820 | -6/Archives | Discovered exit to Factory (range 15) 8847 | -6/Archives | Discovered new exit (range 16) 18818 | -6/Archives | Entered Hub_04(d) 18818 | -6/Hub_04(d) | Accompanied by 5 allies 19432 | -6/Hub_04(d) | Network Hub disabled 19776 | -6/Hub_04(d) | Network Hub disabled 19868 | -6/Hub_04(d) | First assault squad dispatched 19934 | -6/Hub_04(d) | Spotted B-75 Beast 19963 | -6/Hub_04(d) | Allies destroyed B-75 Beast 19975 | -6/Hub_04(d) | Disrupted transfer network 20044 | -6/Hub_04(d) | Discovered exit to Factory (range 15) 20174 | -6/Hub_04(d) | Network Hub disabled 20195 | -6/Hub_04(d) | Network Hub disabled 20394 | -6/Hub_04(d) | Entered Factory 20394 | -5/Factory | Accompanied by 2 allies 20394 | -5/Factory | Evolved 2 slots: Utility x2 20395 | -5/Factory | Loaded intel: 4 garrison access locations 20694 | -5/Factory | First assault squad dispatched 20730 | -5/Factory | Discovered new exit (range 13) 20821 | -5/Factory | Entered Upper Caves 20851 | -5/Upper Caves | Lost 3 parts (1n2u) 21299 | -5/Upper Caves | Identified exit to Upper Caves 24209 | -5/Upper Caves | Entered another Upper Caves area 24209 | -5/Upper Caves | Accompanied by 1 ally 24257 | -5/Upper Caves | Discovered new exit (range 10) 24394 | -5/Upper Caves | Discovered new exit (range 9) 24455 | -5/Upper Caves | Identified exit to Zhirov 24843 | -5/Upper Caves | Entered Zhirov 24843 | -5/Zhirov | Discovered new exit (range 3) 24865 | -5/Zhirov | Met Zhirov 24893 | -5/Zhirov | Learned location of Quarantine (-2) 24893 | -5/Zhirov | Learned location of Command (-1) 24908 | -5/Zhirov | Zhirov requested help retrieving the SGEMP Prototype 24927 | -5/Zhirov | Found Alien Artifact 24927 | -5/Zhirov | Identified Integrated Reactor 24927 | -5/Zhirov | Installed Integrated Reactor, increased core energy generation (+10) 25020 | -5/Zhirov | Found Alien Artifact 25065 | -5/Zhirov | Entered Proximity Caves 25257 | -4/Proximity Caves | Spotter reported a threat 25261 | -4/Proximity Caves | Build established: Hacker-Mutant 25401 | -4/Proximity Caves | Learned 4 Research zone layouts 25685 | -4/Proximity Caves | Spotted B-86 Titan 25701 | -4/Proximity Caves | Discovered new exit (range 10) 25728 | -4/Proximity Caves | Entered Factory 25728 | -4/Factory | Evolved 2 slots: Propulsion x2 25729 | -4/Factory | Loaded intel: 4 garrison access locations 25980 | -4/Factory | Lost 5 parts (2n3u) 26247 | -4/Factory | Identified exit to Upper Caves 26321 | -4/Factory | Lost 3 parts (1p1u1w) 26609 | -4/Factory | Build established: Hacker-Sprinter 26690 | -4/Factory | Sucked down chute 26690 | -4/Factory | Entered Waste 26691 | -4/Waste | Joined by Warlord forces that had cleared the area 26761 | -4/Waste | Discovered new exit (range 14) 27148 | -4/Waste | Entered Factory 27148 | -4/Factory | Accompanied by 20 allies 27169 | -4/Factory | Repaired Imp. Propulsion Shielding 27207 | -4/Factory | Identified exit to DSF 27608 | -4/Factory | Entered DSF 27608 | -4/DSF | Met a pair of Sappers preparing to destroy DSF 27608 | -4/DSF | Accompanied by 20 allies 27619 | -4/DSF | Discovered new exit (range 14) 27626 | -4/DSF | Additional patrols routed to DSF 27629 | -4/DSF | Entered Research 27629 | -3/Research | Evolved 2 slots: Utility x2 27639 | -3/Research | Discovered new exit (range 15) 27646 | -3/Research | Lost 21 allies 27752 | -3/Research | Identified exit to Armory 27752 | -3/Research | Identified exit to Testing 27829 | -3/Research | Revision forces began assault on 0b10 27877 | -3/Research | Discovered new exit (range 15) 27886 | -3/Research | Found Prototype Processor 27886 | -3/Research | Identified Exp. Melee Analysis Suite 27931 | -3/Research | Met up with Revision 17++ 27990 | -3/Research | Found Prototype Device 27990 | -3/Research | Identified Exp. Shield Generator 27991 | -3/Research | Found Exp. Shield Generator 28030 | -3/Research | Found Adv. EM Disruption Field 28072 | -3/Research | Fabricated Cld. Cesium-ion Thruster (x1) 28145 | -3/Research | Entered Armory 28282 | -3/Armory | Fabricated C-55 Analyst (x1) 28370 | -3/Armory | Repaired Imp. Propulsion Shielding 28404 | -3/Armory | Identified Transdimensional Reconstructor 28404 | -3/Armory | Warped through subspace to slip node 28404 | -3/Armory | Discovered new exit (range 1) 28413 | -3/Armory | Entered Lab 28413 | -3/Lab | Discovered new exit (range 9) 28417 | -3/Lab | Hidden lab's door opened automatically 28417 | -3/Lab | Sensor layout match revealed 28417 | -3/Lab | Unable to decrypt terminal 28418 | -3/Lab | Gained access to the hidden lab's interior 28439 | -3/Lab | Found Alien Artifact 28442 | -3/Lab | Identified Core Reset Matrix 28442 | -3/Lab | Used Core Reset Matrix 28446 | -3/Lab | Sensed 3 artifacts in vicinity 28448 | -3/Lab | Detected by scanners 28450 | -3/Lab | Found Integrated Mediator 28455 | -3/Lab | Discovered new exit (range 6) 28456 | -3/Lab | Confronted by A5 28496 | -3/Lab | Destroyed A5 28509 | -3/Lab | Installed Integrated Mediator, increased core attachment efficiency 28512 | -3/Lab | Found Prototype Hackware 28512 | -3/Lab | Identified Exp. System Shield 28519 | -3/Lab | Found Prototype Hackware 28532 | -3/Lab | Found Transdimensional Reconstructor 28538 | -3/Lab | Found Core Regenerator 28545 | -3/Lab | Found Prototype Protection 28545 | -3/Lab | Identified Med. Regenerative Plating 28548 | -3/Lab | Found Prototype Hackware 28548 | -3/Lab | Identified Quantum Router 28551 | -3/Lab | Found Prototype Energy Cannon 28551 | -3/Lab | Identified Warp Cannon 28555 | -3/Lab | Found Prototype Energy Cannon 28555 | -3/Lab | Identified Potential Cannon 28557 | -3/Lab | Identified Exp. Hacking Suite 28566 | -3/Lab | Unable to decrypt terminal 28791 | -3/Lab | Build established: Wizard-Sprinter 29321 | -3/Lab | Entered Research 29321 | -2/Research | Evolved 2 slots: Propulsion x2 29444 | -2/Research | Identified exit to Quarantine 29574 | -2/Research | Spotted B-90 Cyclops 29679 | -2/Research | Build established: Hacker-Sprinter 29693 | -2/Research | Intercept squad dispatched 29723 | -2/Research | Spotted Tracker 29725 | -2/Research | Spotted Tracker 29733 | -2/Research | Destroyed Tracker 29738 | -2/Research | Destroyed Tracker 29749 | -2/Research | Spotted Combat Programmer 29761 | -2/Research | Destroyed Combat Programmer 29768 | -2/Research | System corruption reached 10% 29783 | -2/Research | Spotted Combat Programmer 29796 | -2/Research | Destroyed Combat Programmer 29820 | -2/Research | Lost 16 parts (4p6n5u1w) 29994 | -2/Research | Build established: Hacker-Mutant 30087 | -2/Research | Lost 4 parts (1p1n2u) 30340 | -2/Research | Core integrity fell below 50% 30353 | -2/Research | Entered Quarantine 30354 | -2/Quarantine | Maximum security lockdown engaged 30354 | -2/Quarantine | Detected hypermatrix surge 30354 | -2/Quarantine | Sensed 17 artifacts in vicinity 30355 | -2/Quarantine | Used Core Regenerator, restored core integrity (+362) 30387 | -2/Quarantine | Found Phase Redirector 30408 | -2/Quarantine | Found Sigix Broadsword 30416 | -2/Quarantine | Found Dimensional Node Initializer 30417 | -2/Quarantine | Found Dimensional Node Initializer 30424 | -2/Quarantine | Found Hpw. Transdimensional Reconstructor 30426 | -2/Quarantine | Found Hpw. Transdimensional Reconstructor 30437 | -2/Quarantine | Found Terrabomb 30437 | -2/Quarantine | Used Terrabomb 30457 | -2/Quarantine | Initialized slip node 30476 | -2/Quarantine | Found Core Cannon 30538 | -2/Quarantine | Warped through subspace to slip node 30542 | -2/Quarantine | Core integrity fell below 20% 30556 | -2/Quarantine | Discovered new exit (range 14) 30572 | -2/Quarantine | Spotted Fortress 30579 | -2/Quarantine | Destroyed by Fortress with Enhanced Nova Cannon Last Messages --------------- 30540_ E-15 Imp destroyed. 30540_ G-73 Enforcer destroyed. 30541_ C-30 ARC bursts open, deploying its payload. 30541_ G-73 Enforcer unfolds itself. 30541_ M-36 Artificer unfolds itself. 30541_ Acquired Phase Redirector. 30542_ Cesium-ion Thruster destroyed. 30547_ System corrupted: Energy discharge (-38). 30548_ The unstable cave ceiling collapses. 30554_ ALERT: Assault forces dispatched. 30555_ Adv. Cloaking Device destroyed. 30556_ EXIT=FOUND 30556_ C-30 ARC bursts open, deploying its payload. 30556_ G-73 Enforcer unfolds itself. 30556_ B-74 Champion unfolds itself. 30556_ I-47 Archangel unfolds itself. 30562_ XNPMXLH26WLD0TJF2&2BOH4G6M4K#WSSS198UX 30579_ System corrupted: Energy discharge (-32). Map ----- +----------------------------------------------------+ | ?????????????????????????????????????????????????? | | ?????????????????????????????????????????????????? | | ?????????????????????????????????????????????????? | | ?????????????????????????????????????????????????? | | ?????????????????????????????????????????????????? | | ?????????????????????????????????????????????????? | | ?????????????????????????????????????????????????? | | ?????????????????????????????????????????????????? | | ?????????????????????????????????????????????????? | | ?????????????????????????????????????????????????? | | ?????????????????????????????????????????????????? | | ?????????????????????????????????????????????????? | | ?????????????????????????????????????????????????? | | ?????????????????????????????????????????????????? | | ?????????????????????????????????????????????????? | | ?????????????????????????????????????????????????? | | ?????????????????????????????????????????????????? | | ?????????????????????????????????????????????????? | | ?????????????????????????????????????????????????? | | ?????????????????????????????????????????????????? | | ?????????????????????????????????????????????????? | | ?????????????????????????????????????????????????? | | ########################################?????????? | | ????????? | | ????????? | | % @ ????????? | | ????????? | | ????????? | | ?????????? | | #################### #############?????????? | | ???????????????????# ""#?????????????????????? | | ???????????????????#" FFF""#?????????????????????? | | ???????????????????#""FFF""#?????????????????????? | | ???????????????????#""FFF""#?????????????????????? | | ???????????????????#"""""""??????????????????????? | | ????????????????????######???????????????????????? | | ?????????????????????????????????????????????????? | | ?????????????????????????????????????????????????? | | ?????????????????????????????????????????????????? | | ?????????????????????????????????????????????????? | | ?????????????????????????????????????????????????? | | ?????????????????????????????????????????????????? | | ?????????????????????????????????????????????????? | | ?????????????????????????????????????????????????? | | ?????????????????????????????????????????????????? | | ?????????????????????????????????????????????????? | | ?????????????????????????????????????????????????? | | ?????????????????????????????????????????????????? | | ?????????????????????????????????????????????????? | | ?????????????????????????????????????????????????? | +----------------------------------------------------+ Best States ------------- Heat Dissipation 89 Energy Generation 76 Energy Capacity 1040 Matter Stores 800 Matter Capacity 800 Sight Range 16 Terrain Scan Density 10 Jamming Range 16 Cloak Strength 6 Power Amplification 40 Additional Mass Support 12 Armor Coverage 900 Resistance: TH 30 Resistance: EM 50 Core Shielding 20 Propulsion Shielding 66 Weapon Shielding 90 Evasion (%) 71 Melee Accuracy 8 Recoil Reduction 6 Offensive Hacking 48 Defensive Hacking 55 Authchip Count 1 Item Schematics ----------------- Cld. Cesium-ion Thruster | -2/Research | Scanalyzed Lgt. Quantum Reactor | -2/Research | Hacked Exp. Shield Generator | -2/Research | Scanalyzed Adv. Cloaking Device | -2/Research | Scanalyzed Helical Railgun | -2/Research | Scanalyzed Robot Schematics ------------------ None Fabricated ------------ Imp. Propulsion Shielding | x2 | -6/Factory | Authchip Cld. Cesium-ion Thruster | x1 | -3/Research | Authchip C-55 Analyst | x1 | -3/Armory | Preloaded Alien Tech Used ----------------- Integrated Reactor Transdimensional Reconstructor Core Reset Matrix Integrated Mediator Core Regenerator Terrabomb Dimensional Node Initializer Sigix Broadsword High-powered Transdimensional Reconstructor Achievements -------------- 404 Challenges ------------ None Game ------ Seed ProtonGaussMantle Manual? 0 Play Time 03:55:39 Cumulative 286.3 hours Start 2024.04.27 @ 19:33:17 End 2024.04.28 @ 01:31:34 Sessions 1 Manual Loads 0 Difficulty Rogue Special Mode None Game No. 213 Rogue 213 Adventurer 0 Explorer 0 Win Type - Total 10 Types 6/0/3/1/0/0/0/0/0 Lore% 78 Gallery% 84 Achievement% 71 Wizard Run 0 Options --------- Layout 2 ASCII 1 Keyboard 0 Movement Mouse Keybinds 0 Fullscreen 2 Font 24/Smallcaps Map View 50x44 Zoom Use 0% Tactical HUD 1 Map Filters NONE Filters NONE Steam 1 RUN: 71de332b-e801-43fd-b879-90ff6b6678d3